bitfinex/quotes_BTCUSD_20240629
["timestamp","ask_amount","ask_price","bid_price","bid_amount"]
[1719624651901,0.00184,60973.0,60972.0,0.74180884]
[1719624652578,0.00184,60973.0,60972.0,0.83510884]
[1719624654618,0.00184,60973.0,60972.0,0.74180884]
[1719624654855,0.00084,60973.0,60972.0,0.72680884]
[1719624655288,0.00284,60973.0,60972.0,0.75380884]
[1719624655758,0.00184,60973.0,60972.0,0.74080884]
[1719624656197,0.00284,60973.0,60972.0,0.75380884]
[1719624656659,0.00084,60973.0,60972.0,0.72680884]
[1719624657096,0.00084,60973.0,60972.0,0.74080884]
[1719624657573,0.00084,60973.0,60972.0,0.72680884]
[1719624657794,0.00084,60973.0,60972.0,0.74080884]
[1719624658028,0.00184,60973.0,60972.0,0.75380884]
[1719624658242,0.00184,60973.0,60972.0,0.73980884]
[1719624658460,0.00184,60973.0,60972.0,0.74080884]
[1719624658721,0.00084,60973.0,60972.0,0.74080884]
[1719624658946,0.00184,60973.0,60972.0,0.75380884]
[1719624659175,0.00184,60973.0,60972.0,0.74380884]
[1719624659405,0.00084,60973.0,60972.0,0.73080884]
[1719624659830,0.00184,60973.0,60972.0,0.75380884]
[1719624660051,0.00184,60973.0,60972.0,0.73980884]
[1719624660511,0.00184,60973.0,60972.0,0.75380884]
[1719624660955,0.00184,60973.0,60972.0,0.74380884]
[1719624661199,0.00184,60973.0,60972.0,0.73080884]
[1719624661200,0.00084,60973.0,60972.0,0.73080884]
[1719624661435,0.00184,60973.0,60972.0,0.74380884]
[1719624661663,0.00184,60973.0,60972.0,0.75380884]
[1719624661904,0.00084,60973.0,60972.0,0.73080884]
[1719624662351,0.00184,60973.0,60972.0,0.74380884]
[1719624663025,0.00184,60973.0,60972.0,0.75380884]
[1719624686775,0.00184,60973.0,60972.0,0.84710884]
[1719624687006,0.00184,60973.0,60972.0,1.22030884]
[1719624687239,0.00184,60973.0,60972.0,1.12700884]
[1719624687660,0.03748021,60987.0,60986.0,0.25954405]
[1719624687962,0.0933,60987.0,60986.0,0.43088484]
[1719624688409,0.0933,60987.0,60986.0,0.44088484]
[1719624688632,0.08214346,61007.0,60986.0,0.44088484]
[1719624688633,0.00084,61007.0,60989.0,0.27854586]
[1719624688880,0.0933,60991.0,60989.0,0.44416367]
[1719624689121,0.0933,60991.0,60989.0,0.44088484]
[1719624689665,0.0933,60991.0,60989.0,0.45088484]
[1719624689923,0.0948,60995.0,60994.0,0.27854586]
[1719624690179,0.00084,61007.0,60994.0,0.27854586]
[1719624690180,0.09564,60999.0,60996.0,0.27854586]
[1719624690392,0.0940572,60997.0,60996.0,0.44088484]
[1719624691078,0.0007572,60997.0,60996.0,0.46388484]
[1719624691309,0.0940572,60997.0,60996.0,0.46388484]
[1719624691769,0.0940572,60997.0,60996.0,0.47288484]
[1719624692504,0.0940572,60997.0,60996.0,0.47688484]
[1719624694131,0.0940572,60997.0,60996.0,0.46388484]
[1719624694374,0.0940572,60997.0,60996.0,0.46888484]
[1719624694607,0.0940572,60997.0,60996.0,0.47788484]
[1719624694869,0.0007572,60997.0,60996.0,0.47888484]
[1719624695115,0.0007572,60997.0,60996.0,0.46888484]
[1719624695339,0.0007572,60997.0,60996.0,0.47288484]
[1719624695825,0.0007572,60997.0,60996.0,0.46888484]
[1719624696050,0.0007572,60997.0,60996.0,0.47788484]
[1719624696264,0.1007572,60997.0,60996.0,0.47788484]
[1719624697150,0.1007572,60997.0,60996.0,0.47288484]
[1719624697405,0.0007572,60997.0,60996.0,0.46888484]
[1719624697616,0.1007572,60997.0,60996.0,0.46888484]
[1719624697831,0.1007572,60997.0,60996.0,0.47788484]
[1719624698725,0.0007572,60997.0,60996.0,0.47788484]
[1719624699888,0.0007572,60997.0,60996.0,0.27254586]
[1719624699889,0.7080702,60997.0,60996.0,0.27254586]
[1719624700113,0.8080702,60997.0,60996.0,0.27254586]
[1719624700549,0.82512902,60997.0,60996.0,0.27254586]
[1719624700782,0.91992902,60997.0,60996.0,0.29254586]
[1719624701004,0.85390202,60997.0,60996.0,0.27254586]
[1719624703054,0.8368432,60997.0,60996.0,0.27254586]
[1719624703286,0.85390202,60997.0,60996.0,0.27254586]
[1719624703506,0.85390202,60997.0,60996.0,0.22271848]
[1719624706287,0.8368432,60997.0,60996.0,0.22271848]
[1719624706505,0.85390322,60997.0,60996.0,0.22271848]
[1719624706943,0.85390322,60997.0,60996.0,0.27254586]
[1719624707191,0.94720322,60997.0,60996.0,0.22271848]
[1719624707435,0.94720322,60997.0,60996.0,0.27254586]
[1719624708110,0.52018022,60997.0,60996.0,0.29254586]
[1719624708325,0.48413322,60997.0,60996.0,0.27254586]
[1719624709230,0.4670732,60997.0,60996.0,0.27254586]
[1719624709746,0.4670732,60997.0,60996.0,0.29254586]
[1719624709747,0.2415732,60997.0,60996.0,0.29254586]
[1719624710006,0.1940572,60997.0,60996.0,0.29254586]
[1719624710231,0.0939786,60997.0,60996.0,0.29254586]
[1719624715625,0.2199916,60997.0,60996.0,0.29254586]
[1719624715853,0.0939786,60997.0,60996.0,0.29254586]
[1719624716983,0.0939786,60997.0,60996.0,0.22271848]
[1719624717200,0.0939786,60997.0,60996.0,0.29254586]
[1719624720539,0.0006786,60997.0,60996.0,0.70878484]
[1719624721000,0.0006786,60997.0,60996.0,0.71878484]
[1719624721448,0.0939786,60997.0,60996.0,0.71878484]
[1719624723063,0.0006786,60997.0,60996.0,0.74178484]
[1719624724307,0.0006786,60997.0,60996.0,0.66195746]
[1719624724548,0.0006786,60997.0,60996.0,0.74178484]
[1719624725737,0.00020258,60997.0,60996.0,0.74178484]
[1719624728281,0.00020258,60997.0,60996.0,0.66195746]
[1719624728496,0.00020258,60997.0,60996.0,0.74178484]
[1719624731323,0.00842258,60997.0,60996.0,0.74178484]
[1719624731546,0.00842258,60997.0,60996.0,0.73678484]
[1719624732486,0.00842258,60997.0,60996.0,0.72778484]
[1719624732705,0.00842258,60997.0,60996.0,0.74178484]
[1719624733143,0.00842258,60997.0,60996.0,0.66195746]
[1719624733374,0.00713996,61010.0,61009.0,0.26954405]
[1719624733592,0.10043996,61010.0,61009.0,0.24954405]
[1719624734040,0.10043996,61010.0,61009.0,0.26954405]
[1719624735204,0.10043996,61010.0,61009.0,0.24954405]
[1719624735205,0.61909596,61010.0,61009.0,0.24954405]
[1719624735431,0.20043996,61010.0,61009.0,0.24954405]
[1719624735636,0.71909596,61010.0,61009.0,0.24954405]
[1719624735901,0.74511096,61010.0,61009.0,0.24954405]
[1719624736340,0.76216776,61010.0,61009.0,0.24954405]
[1719624736996,0.76300776,61010.0,61009.0,0.24954405]
[1719624737237,0.76300776,61010.0,61009.0,0.24454405]
[1719624737454,0.76300776,61010.0,61009.0,0.24554405]
[1719624737673,0.74595096,61010.0,61009.0,0.24554405]
[1719624737884,0.76810778,61010.0,61009.0,0.24554405]
[1719624738567,0.74209278,61010.0,61009.0,0.19571667]
[1719624739023,0.74209278,61010.0,61009.0,0.26554405]
[1719624739907,0.74209278,61010.0,61009.0,0.19571667]
[1719624740118,0.74209278,61010.0,61009.0,0.24554405]
[1719624744196,0.72503596,61010.0,61009.0,0.19571667]
[1719624744414,0.74209279,61010.0,61009.0,0.19571667]
[1719624745005,0.74209279,61010.0,61009.0,0.24554405]
[1719624745827,0.50871345,61010.0,61009.0,0.24554405]
[1719624746005,0.41541345,61010.0,61009.0,0.24554405]
[1719624746249,0.49871345,61010.0,61009.0,0.24554405]
[1719624747174,0.48165662,61010.0,61009.0,0.24554405]
[1719624747416,0.48165662,61010.0,61009.0,0.19571667]
[1719624747843,0.58165662,61010.0,61009.0,0.19571667]
[1719624748741,0.58805662,61010.0,61009.0,0.19571667]
[1719624751713,0.58805662,61010.0,61009.0,0.24554405]
[1719624752399,0.49475662,61010.0,61009.0,0.24554405]
[1719624752621,0.58805662,61010.0,61009.0,0.24554405]
[1719624753060,0.58805662,61010.0,61009.0,0.19571667]
[1719624754507,0.58805662,61010.0,61009.0,0.24554405]
[1719624754985,0.49475662,61010.0,61009.0,0.26554405]
[1719624755210,0.511737,61010.0,61009.0,0.26554405]
[1719624756617,0.658257,61010.0,61009.0,0.26554405]
[1719624756855,0.658257,61010.0,61009.0,0.25292766]
[1719624757094,0.658257,61010.0,61009.0,0.23292766]
[1719624757333,0.67531398,61010.0,61009.0,0.23292766]
[1719624757573,0.67531398,61010.0,61009.0,0.18310028]
[1719624758712,0.67531398,61010.0,61009.0,0.23292766]
[1719624759416,0.67531398,61010.0,61009.0,0.18310028]
[1719624760398,0.67531407,61010.0,61009.0,0.18310028]
[1719624760892,0.658257,61010.0,61009.0,0.18310028]
[1719624761113,0.67531407,61010.0,61009.0,0.18310028]
[1719624762796,0.67531407,61010.0,61009.0,0.23292766]
[1719624763014,0.67531407,61010.0,61009.0,0.18310028]
[1719624763487,0.67531434,61010.0,61009.0,0.18310028]
[1719624763717,0.67531434,61010.0,61009.0,0.23292766]
[1719624763968,0.60806137,61010.0,61009.0,0.18310028]
[1719624765052,0.59100403,61010.0,61009.0,0.18310028]
[1719624765721,0.49770403,61010.0,61009.0,0.18310028]
[1719624765946,0.59100403,61010.0,61009.0,0.23292766]
[1719624766170,0.59100403,61010.0,61009.0,0.18310028]
[1719624766960,0.59100403,61010.0,61009.0,0.23292766]
[1719624767426,0.59100403,61010.0,61009.0,0.18310028]
[1719624767668,0.59100403,61010.0,61009.0,0.23292766]
[1719624768099,0.59100403,61010.0,61009.0,0.18310028]
[1719624769031,0.59100403,61010.0,61009.0,0.18402428]
[1719624769266,0.59184403,61010.0,61009.0,0.18402428]
[1719624771115,0.59184403,61010.0,61009.0,0.18216514]
[1719624771337,0.591761,61010.0,61009.0,0.36539252]
[1719624771574,0.509841,61010.0,61009.0,0.36539252]
[1719624773152,0.24115254,61010.0,61009.0,0.36539252]
[1719624773376,0.33445254,61010.0,61009.0,0.36539252]
[1719624775235,0.43445254,61010.0,61009.0,0.36539252]
[1719624775666,0.43445254,61010.0,61009.0,0.31556514]
[1719624775876,0.43445254,61010.0,61009.0,0.36539252]
[1719624776082,0.1933,61010.0,61009.0,0.36539252]
[1719624776300,0.776426,61010.0,61009.0,0.36539252]
[1719624776545,0.876426,61010.0,61009.0,0.36539252]
[1719624777650,0.89348324,61010.0,61009.0,0.36539252]
[1719624779644,0.89348323,61010.0,61009.0,0.36539252]
[1719624780065,0.89348323,61010.0,61009.0,0.31556514]
[1719624780290,0.89348323,61010.0,61009.0,0.36539252]
[1719624780725,0.89348323,61010.0,61009.0,0.31556514]
[1719624781150,0.89348323,61010.0,61009.0,0.36539252]
[1719624781361,0.89348323,61010.0,61009.0,0.31556514]
[1719624782027,0.876426,61010.0,61009.0,0.31556514]
[1719624782238,0.89348317,61010.0,61009.0,0.31556514]
[1719624785397,0.89348344,61010.0,61009.0,0.31556514]
[1719624785877,0.876426,61010.0,61009.0,0.31556514]
[1719624786108,0.89348344,61010.0,61009.0,0.31556514]
[1719624786328,0.58402375,61010.0,61009.0,0.31556514]
[1719624786539,0.67732375,61010.0,61009.0,0.31556514]
[1719624786973,0.67550644,61010.0,61009.0,0.31556514]
[1719624788456,0.77550644,61010.0,61009.0,0.31556514]
[1719624788665,0.73445544,61010.0,61009.0,0.31556514]
[1719624788881,0.73445534,61010.0,61009.0,0.31456514]
[1719624789094,0.64115534,61010.0,61009.0,0.31456514]
[1719624789343,0.54073734,61010.0,61009.0,0.36439252]
[1719624789559,0.40048234,61010.0,61009.0,0.31456514]
[1719624789797,0.31975234,61010.0,61009.0,0.31456514]
[1719624790007,0.32075234,61010.0,61009.0,0.31456514]
[1719624790227,0.303695,61010.0,61009.0,0.31456514]
[1719624790458,0.303695,61010.0,61009.0,0.36439252]
[1719624791811,0.303695,61010.0,61009.0,0.31456514]
[1719624797948,0.1933,61010.0,61009.0,0.31456514]
[1719624798158,0.832651,61010.0,61009.0,0.31456514]
[1719624798359,0.933651,61010.0,61009.0,0.31456514]
[1719624798608,0.9507086,61010.0,61009.0,0.31456514]
[1719624799716,0.9497086,61010.0,61009.0,0.31456514]
[1719624799936,0.9507086,61010.0,61009.0,0.31456514]
[1719624800980,0.91925075,61010.0,61009.0,0.31456514]
[1719624801288,0.902193,61010.0,61009.0,0.31456514]
[1719624801510,0.91925075,61010.0,61009.0,0.31456514]
[1719624801726,0.83752075,61010.0,61009.0,0.31456514]
[1719624802188,0.83743716,61010.0,61009.0,0.31456514]
[1719624803323,0.83827716,61010.0,61009.0,0.31456514]
[1719624803581,0.83927716,61010.0,61009.0,0.31456514]
[1719624804508,0.82221941,61010.0,61009.0,0.31456514]
[1719624804792,0.80533416,61010.0,61009.0,0.31456514]
[1719624805021,0.54254216,61010.0,61009.0,0.36439252]
[1719624805211,0.54354216,61010.0,61009.0,0.36439252]
[1719624806153,0.52648441,61010.0,61009.0,0.36439252]
[1719624806400,0.30445141,61010.0,61009.0,0.43586514]
[1719624806624,0.30345141,61010.0,61009.0,0.48569252]
[1719624807272,0.30445141,61010.0,61009.0,0.48569252]
[1719624807807,0.30345141,61010.0,61009.0,0.48569252]
[1719624808251,0.30445141,61010.0,61009.0,0.48569252]
[1719624809651,0.30345141,61010.0,61009.0,0.48569252]
[1719624810104,0.30445141,61010.0,61009.0,0.48569252]
[1719624810598,0.30445141,61010.0,61009.0,0.43586514]
[1719624810844,0.30345141,61010.0,61009.0,0.43586514]
[1719624811308,0.30445141,61010.0,61009.0,0.43586514]
[1719624812220,0.30445141,61010.0,61009.0,0.48569252]
[1719624815579,0.30445141,61010.0,61009.0,0.43586514]
[1719624816254,0.30445141,61010.0,61009.0,0.48569252]
[1719624816483,0.30445141,61010.0,61009.0,0.48561733]
[1719624816925,0.19505641,61010.0,61009.0,0.48561733]
[1719624817148,0.09514,61010.0,61009.0,0.48561733]
[1719624817380,0.645322,61010.0,61009.0,0.48561733]
[1719624817637,0.746322,61010.0,61009.0,0.48561733]
[1719624818087,0.745322,61010.0,61009.0,0.43578995]
[1719624818850,0.76237931,61010.0,61009.0,0.43578995]
[1719624819524,0.76337931,61010.0,61009.0,0.43578995]
[1719624820198,0.76237931,61010.0,61009.0,0.43578995]
[1719624820455,0.76337931,61010.0,61009.0,0.43578995]
[1719624820648,0.76338017,61010.0,61009.0,0.43578995]
[1719624823999,0.76338025,61010.0,61009.0,0.43578995]
[1719624824439,0.76338029,61010.0,61009.0,0.43578995]
[1719624826415,0.76338029,61010.0,61009.0,0.31448995]
[1719624827080,0.76337944,61010.0,61009.0,0.31448995]
[1719624827514,2.15603444,61010.0,61009.0,0.31448995]
[1719624827766,2.50603444,61010.0,61009.0,0.31448995]
[1719624828832,2.15603444,61010.0,61009.0,0.31448995]
[1719624829481,2.15503444,61010.0,61009.0,0.31443883]
[1719624829932,2.15603444,61010.0,61009.0,0.31443883]
[1719624830155,2.15603446,61010.0,61009.0,0.31443883]
[1719624830397,2.15503446,61010.0,61009.0,0.31443883]
[1719624830812,2.15603446,61010.0,61009.0,0.31443883]
[1719624831259,2.15503446,61010.0,61009.0,0.31443883]
[1719624832778,2.15603446,61010.0,61009.0,0.31443883]
[1719624833239,2.15503446,61010.0,61009.0,0.31443883]
[1719624833461,2.15503442,61010.0,61009.0,0.31443883]
[1719624834100,2.15603442,61010.0,61009.0,0.31443883]
[1719624835834,2.15503442,61010.0,61009.0,0.31443883]
[1719624836264,2.15603442,61010.0,61009.0,0.31443883]
[1719624836628,2.15603455,61010.0,61009.0,0.31443883]
[1719624837052,2.138977,61010.0,61009.0,0.31443883]
[1719624837255,2.15603455,61010.0,61009.0,0.31443883]
[1719624837459,2.15503455,61010.0,61009.0,0.31443883]
[1719624837848,2.15603455,61010.0,61009.0,0.31443883]
[1719624838049,2.15603455,61010.0,60997.0,0.29871483]
[1719624838050,0.15017262,61009.0,60997.0,0.29871483]
[1719624838250,0.15017262,61009.0,60996.0,0.000924]
[1719624838251,0.0933,60999.0,60996.0,0.000924]
[1719624838454,0.1548,60999.0,60996.0,0.000924]
[1719624838785,3.144561,60999.0,60996.0,0.000924]
[1719624838942,2.795465,60999.0,60998.0,0.47650181]
[1719624839376,2.795465,60999.0,60998.0,0.4675]
[1719624839578,2.795465,60999.0,60998.0,0.00900181]
[1719624839830,2.81252588,60999.0,60998.0,0.00900181]
[1719624839969,2.81252587,60999.0,60998.0,0.01000181]
[1719624840175,2.81252587,60999.0,60998.0,0.001]
[1719624840383,2.81352587,60999.0,60998.0,0.001]
[1719624840702,2.81352587,60999.0,60998.0,0.01000181]
[1719624840852,2.97585958,60999.0,60998.0,0.01000181]
[1719624841455,2.22864387,60999.0,60998.0,0.00900181]
[1719624841680,2.22864387,60999.0,60998.0,0.01000181]
[1719624842247,2.16983225,60999.0,60998.0,0.01000181]
[1719624842467,2.15736025,60999.0,60998.0,0.01000181]
[1719624842683,2.06622425,60999.0,60998.0,0.01000181]
[1719624843386,2.06615802,60999.0,60998.0,0.00784472]
[1719624844275,1.18298102,60999.0,60998.0,0.00784472]
[1719624844490,0.36186602,60999.0,60998.0,0.36028693]
[1719624844696,0.32984602,60999.0,60998.0,0.36028693]
[1719624845121,0.31278477,60999.0,60998.0,0.36028693]
[1719624845770,0.19423377,60999.0,60998.0,0.36028693]
[1719624846000,0.1943,60999.0,60998.0,0.36028693]
[1719624846205,0.1943,60999.0,60998.0,0.38028693]
[1719624846419,0.348259,60999.0,60998.0,0.36028693]
[1719624846625,0.310759,60999.0,60998.0,0.36028693]
[1719624847039,0.310759,60999.0,60998.0,0.38028693]
[1719624848644,0.19527704,60999.0,60998.0,0.38028693]
[1719624849022,0.19527704,60999.0,60998.0,0.38228693]
[1719624849263,0.1933,60999.0,60998.0,0.38228693]
[1719624849770,0.0933,60999.0,60998.0,0.38228693]
[1719624850017,0.0943,60999.0,60998.0,0.38228693]
[1719624850486,0.0933,60999.0,60998.0,0.38228693]
[1719624851407,0.0933,60999.0,60998.0,0.36228693]
[1719624852333,0.0933,60999.0,60998.0,0.31245955]
[1719624853023,0.0933,60999.0,60998.0,0.31045955]
[1719624853519,0.0933,60999.0,60998.0,0.31145955]
[1719624853771,0.0943,60999.0,60998.0,0.31145955]
[1719624854290,0.0943,60999.0,60996.0,0.000924]
[1719624854291,0.10373,60999.0,60996.0,0.000924]
[1719624854520,0.15017262,60993.0,60983.0,0.18795955]
[1719624854760,3.19966398,60998.0,60984.0,0.00784472]
[1719624854761,2.993025,60992.0,60984.0,0.00784472]
[1719624854998,2.993025,60992.0,60983.0,0.18011483]
[1719624854999,3.037325,60991.0,60986.0,0.00784472]
[1719624855229,0.0933,60985.0,60983.0,0.18011483]
[1719624855479,1.890479,60984.0,60983.0,0.18011483]
[1719624855701,1.890479,60984.0,60983.0,0.18795955]
[1719624855981,1.890479,60984.0,60983.0,0.18011483]
[1719624856216,1.990479,60984.0,60983.0,0.18011483]
[1719624856444,1.990479,60984.0,60979.0,0.00784472]
[1719624856445,2.06324427,60984.0,60979.0,0.00784472]
[1719624856680,0.0933,60981.0,60979.0,0.00784472]
[1719624856936,1.983949,60980.0,60979.0,0.00784472]
[1719624857186,2.083949,60980.0,60979.0,0.00784472]
[1719624857654,1.962625,60980.0,60979.0,0.00784472]
[1719624857882,1.97969027,60980.0,60979.0,0.00784472]
[1719624858128,1.962625,60980.0,60979.0,0.00784472]
[1719624858381,1.97981105,60980.0,60979.0,0.00784472]
[1719624858621,1.98381105,60980.0,60979.0,0.00784472]
[1719624859095,1.98381105,60980.0,60979.0,0.00884472]
[1719624859345,0.39978405,60980.0,60979.0,0.30385955]
[1719624859563,0.41964605,60980.0,60979.0,0.30385955]
[1719624859788,0.31216,60980.0,60979.0,0.51818693]
[1719624860245,0.40546,60980.0,60979.0,0.44835955]
[1719624860477,0.1973,60980.0,60979.0,0.18795955]
[1719624860722,0.0973,60980.0,60979.0,0.18795955]
[1719624860963,0.1933,60980.0,60979.0,0.18795955]
[1719624861229,0.1953,60980.0,60979.0,0.18795955]
[1719624861969,0.1933,60980.0,60979.0,0.18795955]
[1719624862263,0.1943,60980.0,60979.0,0.18795955]
[1719624862753,0.1943,60980.0,60979.0,0.18895955]
[1719624863263,0.0521,60980.0,60979.0,0.001]
[1719624863547,0.0521,60980.0,60972.0,0.000924]
[1719624863548,3.082725,60980.0,60972.0,0.00876872]
[1719624863721,0.0933,60974.0,60972.0,0.00876872]
[1719624863926,2.202034,60973.0,60972.0,0.00876872]
[1719624864132,2.302034,60973.0,60972.0,0.00876872]
[1719624864584,2.32088543,60973.0,60972.0,0.00876872]
[1719624865480,2.26702243,60973.0,60972.0,0.00876872]
[1719624865731,2.17842243,60973.0,60972.0,0.00976872]
[1719624866200,2.05261243,60973.0,60972.0,0.00876872]
[1719624866422,2.05261243,60973.0,60972.0,0.00976872]
[1719624866649,2.05661243,60973.0,60972.0,0.00976872]
[1719624867137,2.22294614,60973.0,60972.0,0.01076872]
[1719624867612,1.79575414,60973.0,60972.0,0.01076872]
[1719624867836,1.79591479,60973.0,60972.0,0.01076872]
[1719624868061,1.79191479,60973.0,60972.0,0.00976872]
[1719624868308,1.63358108,60973.0,60972.0,0.01076872]
[1719624869478,1.62958108,60973.0,60972.0,0.00976872]
[1719624869709,1.62958108,60973.0,60972.0,0.01076872]
[1719624869956,1.62958108,60973.0,60972.0,0.00976872]
[1719624870470,1.63258108,60973.0,60972.0,0.01076872]
[1719624870912,1.6325479,60973.0,60972.0,0.002924]
[1719624871431,1.6285479,60973.0,60972.0,0.001924]
[1719624871656,2.6359979,60973.0,60972.0,0.002924]
[1719624872149,2.6518979,60973.0,60972.0,0.001924]
[1719624872409,2.6830979,60973.0,60972.0,0.001924]
[1719624872656,2.6870979,60973.0,60972.0,0.002924]
[1719624874512,2.9996095,60973.0,60972.0,0.002924]
[1719624874767,0.0511,60971.0,60959.0,0.00784472]
[1719624874990,0.0933,60960.0,60959.0,0.00784472]
[1719624875221,2.118569,60960.0,60959.0,0.00784472]
[1719624875451,2.218569,60960.0,60959.0,0.00784472]
[1719624875675,2.198002,60960.0,60959.0,0.00784472]
[1719624875901,2.21676142,60960.0,60959.0,0.00784472]
[1719624876132,2.09734142,60960.0,60959.0,0.00784472]
[1719624876590,2.01661142,60960.0,60959.0,0.00784472]
[1719624877028,1.997852,60960.0,60959.0,0.00784472]
[1719624877449,2.005852,60960.0,60959.0,0.00884472]
[1719624877672,1.819147,60960.0,60959.0,0.00784472]
[1719624878110,1.827147,60960.0,60959.0,0.00884472]
[1719624878323,1.836147,60960.0,60959.0,0.00984472]
[1719624878534,1.99848071,60960.0,60959.0,0.00984472]
[1719624879009,1.93278071,60960.0,60959.0,0.00984472]
[1719624880755,1.76497671,60960.0,60959.0,0.00984472]
[1719624880973,1.72897671,60960.0,60959.0,0.00984472]
[1719624881451,1.566643,60960.0,60959.0,0.00984472]
[1719624881969,0.2103,60960.0,60959.0,0.0796721]
[1719624882421,0.2103,60960.0,60959.0,0.00984472]
[1719624882808,0.1933,60960.0,60959.0,0.00784472]
[1719624883010,0.1933,60960.0,60959.0,0.00884472]
[1719624883220,0.2073,60960.0,60959.0,0.00984472]
[1719624884323,1.347356,60960.0,60959.0,0.00984472]
[1719624884488,1.340356,60960.0,60959.0,0.00884472]
[1719624884694,1.096096,60960.0,60959.0,0.0586721]
[1719624884895,1.105096,60960.0,60959.0,0.0596721]
[1719624885118,1.105096,60960.0,60959.0,0.00984472]
[1719624885576,1.096096,60960.0,60959.0,0.00884472]
[1719624885759,1.103096,60960.0,60959.0,0.00984472]
[1719624886770,1.103096,60960.0,60959.0,0.002]
[1719624887022,1.103096,60960.0,60959.0,0.00984472]
[1719624887462,1.103096,60960.0,60959.0,0.002]
[1719624887670,1.103096,60960.0,60959.0,0.00984472]
[1719624888824,1.103096,60960.0,60959.0,0.41212681]
[1719624888825,0.583546,60960.0,60959.0,0.41212681]
[1719624889065,0.014,60960.0,60959.0,0.62083841]
[1719624889352,0.014,60960.0,60959.0,0.72366579]
[1719624889569,0.0933,60969.0,60968.0,0.25778693]
[1719624889809,0.0933,60969.0,60968.0,0.68872591]
[1719624890062,0.48811044,60984.0,60975.0,0.18011483]
[1719624890289,2.28907244,60984.0,60977.0,0.04982738]
[1719624890525,0.0933,60978.0,60976.0,0.1524]
[1719624890778,0.227928,60977.0,60976.0,0.1524]
[1719624891016,0.327928,60977.0,60976.0,0.22222738]
[1719624892748,0.331928,60977.0,60976.0,0.22322738]
[1719624893425,0.397763,60977.0,60976.0,0.22322738]
[1719624893634,0.397763,60977.0,60976.0,0.1534]
[1719624894587,0.400763,60977.0,60976.0,0.1534]
[1719624899593,0.401603,60977.0,60976.0,0.1534]
[1719624903830,0.401603,60977.0,60976.0,0.48464567]
[1719624904313,0.355595,60977.0,60976.0,0.48464567]
[1719624905039,0.351595,60977.0,60976.0,0.48364567]
[1719624905303,0.353595,60977.0,60976.0,0.48464567]
[1719624905561,0.216595,60977.0,60976.0,0.48464567]
[1719624905806,0.211595,60977.0,60976.0,0.48364567]
[1719624906045,0.211595,60977.0,60976.0,0.40234221]
[1719624906046,0.208595,60977.0,60976.0,0.40234221]
[1719624906305,0.10284,60977.0,60976.0,0.52234221]
[1719624906780,0.225119,60977.0,60976.0,0.52234221]
[1719624907467,0.226119,60977.0,60976.0,0.52234221]
[1719624908973,0.224119,60977.0,60976.0,0.52234221]
[1719624909205,0.22404023,60977.0,60976.0,0.52234221]
[1719624909428,0.22504023,60977.0,60976.0,0.52234221]
[1719624909672,0.21261423,60977.0,60976.0,0.45251483]
[1719624909944,0.21261423,60977.0,60976.0,0.69252591]
[1719624909945,0.00076123,60977.0,60976.0,0.69252591]
[1719624910151,0.00076123,60977.0,60976.0,0.62269853]
[1719624910391,0.00076123,60977.0,60976.0,0.69252591]
[1719624911380,0.09606123,60977.0,60976.0,0.69252591]
[1719624911858,0.09506123,60977.0,60976.0,0.69252591]
[1719624912098,0.09506123,60977.0,60976.0,0.70652591]
[1719624912325,0.09406123,60977.0,60976.0,0.70652591]
[1719624912827,0.09406123,60977.0,60976.0,0.71252591]
[1719624913054,0.09406123,60977.0,60976.0,0.70652591]
[1719624913281,0.09406123,60977.0,60976.0,0.71052591]
[1719624914440,0.09406123,60977.0,60976.0,0.73352591]
[1719624914441,0.00076123,60977.0,60976.0,0.73352591]
[1719624914677,0.00076123,60977.0,60976.0,0.73952591]
[1719624915112,0.00076123,60977.0,60976.0,0.73352591]
[1719624915642,0.00076123,60977.0,60976.0,0.74074591]
[1719624915864,0.00076123,60977.0,60976.0,0.75474591]
[1719624916370,0.00076123,60977.0,60976.0,0.65391853]
[1719624916559,0.00076123,60977.0,60976.0,0.66791853]
[1719624916828,0.01738731,60998.0,60997.0,0.06982738]
[1719624916829,0.50549775,60998.0,60997.0,0.06982738]
[1719624917067,0.50549775,60998.0,60995.0,0.30011483]
[1719624917068,0.72731975,60998.0,60996.0,0.18011483]
[1719624917307,0.0933,60998.0,60996.0,0.18011483]
[1719624917542,0.0933,60998.0,60997.0,0.06982738]
[1719624917772,0.01822731,60999.0,60998.0,0.24994221]
[1719624918010,0.11152731,60999.0,60998.0,0.24994221]
[1719624918243,0.21943131,60999.0,60998.0,0.24994221]
[1719624918691,0.202044,60999.0,60998.0,0.24994221]
[1719624918923,0.202044,60999.0,60998.0,0.22994221]
[1719624919384,0.208744,60999.0,60998.0,0.22994221]
[1719624919836,0.211744,60999.0,60998.0,0.22994221]
[1719624920607,0.211744,60999.0,60998.0,0.24994221]
[1719624921094,0.211744,60999.0,60998.0,0.18011483]
[1719624921292,0.211744,60999.0,60998.0,0.22994221]
[1719624921554,0.211744,60999.0,60998.0,0.18011483]
[1719624921807,0.211744,60999.0,60998.0,0.24994221]
[1719624922045,0.211744,60999.0,60998.0,0.22994221]
[1719624927742,0.211744,60999.0,60998.0,0.24994221]
[1719624928038,0.15536422,61001.0,60999.0,0.04982738]
[1719624928258,0.58475,61000.0,60999.0,0.04982738]
[1719624928476,0.58475,61000.0,60998.0,0.18011483]
[1719624928695,0.58475,61000.0,60999.0,0.06982738]
[1719624928912,0.58475,61000.0,60998.0,0.18011483]
[1719624929593,0.58475,61000.0,60999.0,0.04982738]
[1719624929804,0.58475,61000.0,60998.0,0.18011483]
[1719624930029,0.58475,61000.0,60999.0,0.18011483]
[1719624930259,0.68475,61000.0,60999.0,0.18011483]
[1719624931259,1.032097,61000.0,60999.0,0.18011483]
[1719624934869,1.04915739,61000.0,60999.0,0.18011483]
[1719624936008,1.04915739,61000.0,60999.0,0.22994221]
[1719624936229,1.04915739,61000.0,60999.0,0.18011483]
[1719624937526,1.04915684,61000.0,60999.0,0.18011483]
[1719624937852,1.032097,61000.0,60999.0,0.18011483]
[1719624938065,1.04915684,61000.0,60999.0,0.18011483]
[1719624940534,1.04915715,61000.0,60999.0,0.18011483]
[1719624941355,1.14245715,61000.0,60999.0,0.18011483]
[1719624941556,1.14245715,61000.0,60999.0,0.18006885]
[1719624943847,1.125397,61000.0,60999.0,0.18006885]
[1719624944053,1.14245715,61000.0,60999.0,0.18006885]
[1719624947157,1.14245714,61000.0,60999.0,0.18006885]
[1719624948969,1.14245714,61000.0,60999.0,0.22989623]
[1719624949458,1.14245714,61000.0,60999.0,0.18006885]
[1719624949682,0.21036014,61000.0,60999.0,0.18006885]
[1719624949903,1.803839,61000.0,60999.0,0.18006885]
[1719624950561,1.82089914,61000.0,60999.0,0.18006885]
[1719624954579,1.65771314,61000.0,60999.0,0.18006885]